{"text_format":"2","workbook":"xlsx","n_sheets":7,"sheets":["Serviços Preliminares a Adm_RES","Poços Sedimentares","Poço Só Instalação","Cristalino Completo","CPU POÇOS","DESLOCAMENTOS","RESUMO"],"not_rendered":{"charts":0,"images":1,"macros":0,"external_links":3,"defined_names":317,"comments":0,"pivot_tables":0},"unopened":[],"bounds":{"document_bytes":16777216,"sheet_cells":100000,"run_cost":"one","rows_first":2000,"rows_last":500,"rows_between":2000,"halvings":0,"cell_chars":16384,"cell_head_chars":4096},"cells_cut":0,"cells_raw":0,"read":"whole","date_system":"1900"}

{"sheet":"Serviços Preliminares a Adm_RES","index":0,"n_rows":31,"n_cols":8,"rows_kept":31,"cut":false,"hidden":false,"merged":[[9,0,9,3],[9,4,9,5],[9,6,9,7],[10,0,10,7],[11,0,12,0],[11,1,12,1],[11,3,12,3],[11,4,12,4],[1,0,4,7],[5,0,6,2],[5,3,6,7],[7,0,8,2],[7,3,8,7],[11,5,12,5],[11,6,11,7],[20,6,20,7],[19,0,19,7],[11,2,12,2]]}
[]
[]
[]
[]
[]
["Obra:  ",null,null," Perfuração de Poços Tubulares"]
[]
["Local:",null,null,"Comunidades dispersas situadas na zona rural dos municípios de Afogados da Ingazeira, Afrânio, Águas Belas, Alagoinha, Araripina, Arcoverde, Belém do São Francisco, Betânia, Bodocó, Bom Conselho, Brejinho, Buíque, Cabrobó, Caetés, Calumbi, Carnaíba, Carnaubeira da Penha, Cedro, Custódia, Dormentes, Exu, Flores, Floresta, Granito, Iati, Ibimirim, Iguaracy, Inajá, Ingazeira, Ipubi, Itacuruba, Itaíba, Itapetim, Jatobá, Lagoa Grande, Manari, Mirandiba, Moreilândia, Orocó, Ouricuri, Paranatama, Parnamirim, Pedra, Pesqueira, Petrolândia, Petrolina, Quixaba, Salgueiro, Saloá, Santa Cruz da Venerada, Santa Cruz da Baixa Verde, Santa Filomena, Santa Maria da Boa Vista, Santa Terezinha, São José do Belmonte, São José do Egito, Serra Talhada, Serrita, Sertânia, Solidão, Tabira, Tacaratu, Terra Nova, Trindade, Triunfo, Tupanatinga, Tuparetama, Venturosa e Verdejante, na área de abrangência da 3ª Superintendência Regional da CODEVASF."]
[]
[{"$nulls":4},"Total das Obras",null,{"$f":"H14+H22+H26+H29","v":0}]
["PLANILHA ORÇAMENTÁRIA"]
["codigo","ITEM","COD","DESCRIÇÃO DOS SERVIÇOS","UNID.","QUANT.","PREÇO (R$)"]
[{"$nulls":6},"UNITÁRIO C/BDI","TOTAL COM BDI"]
[null,1,null,"Serviços Preliminares",null,null,null,{"$f":"SUM(H15:H19)","v":0}]
[null,"1.1",null,"Mobilização de Equipamentos, Materiais e Pessoal.","un",{"$f":"69+3","v":72}]
[null,"1.2",null,"Desmobilização de Equipamentos, Materiais e Pessoal.","un",2]
[null,"1.3",null,"Fornecimento, montagem e conservação de placa de identificação de obra padrão  (3m x 2m).","m²",60]
[null,"1.4",null,"Fornecimento de Veículo 4x4 à fiscalização com seguro, taxas de licenciamento, revisão periódica, manutenção, combustível e pneus.","mês",12]
[null,"1.5",null,"Administração local da obra.","un",1]
["EXECUÇÃO DOS POÇOS"]
[null,"ITEM",null,"DESCRIÇÃO DOS SERVIÇOS","UNID.","QUANT."," TOTAL C/ BDI (R$)"]
[null,2,null,"Poços Cristalinos - Completos",null,null,null,{"$f":"SUM(G23:G25)","v":0}]
[null,2,null,"Poços Cristalinos profundidade média 60m - PERFURAÇÃO","un",{"$f":"'Cristalino Completo'!E13+'Cristalino Completo'!F13","v":400}]
[null,4,null,"Poços Cristalinos - Montagem e Instalação com bomba submersa.","un",{"$f":"'Cristalino Completo'!E13","v":180}]
[null,5,null,"Poços Cristalinos - Montagem e Instalação com cata-vento.","un",{"$f":"'Cristalino Completo'!F13","v":220}]
[null,2,null,"Poços Cristalinos - APENAS INSTALAÇÃO",null,null,null,{"$f":"SUM(G27:G28)","v":0}]
[null,4,null,"Poços Cristalinos - Montagem e Instalação com bomba submersa.","un",{"$f":"'Poço Só Instalação'!E13","v":100}]
[null,5,null,"Poços Cristalinos - Montagem e Instalação com cata-vento.","un",{"$f":"'Poço Só Instalação'!F13","v":100}]
[null,2,null,"Poços SEDIMENTARES",null,null,null,{"$f":"SUM(G30:G31)","v":0}]
[null,3,null,"Poços Sedimentares profundidade média 180m","un",6]
[null,6,null,"Poços Sedimentares - Montagem e Instalação","un",6]

{"sheet":"Poços Sedimentares","index":1,"n_rows":79,"n_cols":13,"rows_kept":79,"cut":false,"hidden":false,"merged":[[18,2,19,2],[9,0,10,3],[9,4,9,5],[9,6,9,7],[10,4,10,5],[10,6,10,7],[14,6,14,7],[15,4,15,5],[15,6,15,7],[11,0,12,3],[11,6,11,7],[12,6,12,7],[13,4,13,5],[13,6,13,7],[1,0,4,7],[5,0,6,2],[5,3,6,7],[7,0,8,2],[7,3,8,7],[71,9,71,10],[71,11,71,12],[13,0,16,3],[16,4,16,5],[16,6,16,7],[17,0,17,7],[18,0,19,0],[18,1,19,1],[18,3,19,3],[18,4,19,4],[69,9,69,12],[70,9,70,10],[70,11,70,12],[18,5,19,5],[18,6,18,7],[14,4,14,5]]}
[]
[]
[]
[]
[]
["Obra:  ",null,null," Perfuração de Poços Tubulares"]
[]
["Local:",null,null,"Comunidades dispersas situadas na zona rural dos municípios de Afogados da Ingazeira, Afrânio, Águas Belas, Alagoinha, Araripina, Arcoverde, Belém do São Francisco, Betânia, Bodocó, Bom Conselho, Brejinho, Buíque, Cabrobó, Caetés, Calumbi, Carnaíba, Carnaubeira da Penha, Cedro, Custódia, Dormentes, Exu, Flores, Floresta, Granito, Iati, Ibimirim, Iguaracy, Inajá, Ingazeira, Ipubi, Itacuruba, Itaíba, Itapetim, Jatobá, Lagoa Grande, Manari, Mirandiba, Moreilândia, Orocó, Ouricuri, Paranatama, Parnamirim, Pedra, Pesqueira, Petrolândia, Petrolina, Quixaba, Salgueiro, Saloá, Santa Cruz da Venerada, Santa Cruz da Baixa Verde, Santa Filomena, Santa Maria da Boa Vista, Santa Terezinha, São José do Belmonte, São José do Egito, Serra Talhada, Serrita, Sertânia, Solidão, Tabira, Tacaratu, Terra Nova, Trindade, Triunfo, Tupanatinga, Tuparetama, Venturosa e Verdejante, na área de abrangência da 3ª Superintendência Regional da CODEVASF."]
[]
["Total de poços a perfurar",null,null,null,"Cristalino",null,"Sedimentar"]
[{"$nulls":4},0,null,6]
["Total de poços a instalar",null,null,null,"Bomba","Cata-vento","Bomba"]
[{"$nulls":4},0,0,6]
[" Data Base Utilizada para Insumos: SINAPI Junho/2017 Não Desonerado; ORSE Maio/2017; Cotações",null,null,null,"Valor Perfuração (R$)",null,{"$f":"SUM(H22:H43)","v":0},null,{"$f":"G14/G11","v":0},{"$f":"G14","v":0}]
[{"$nulls":4},"Instalação Motobomba (R$)",null,{"$f":"SUM(H45:H66)","v":0},null,{"$f":"G15/G13","v":0},{"$f":"G15","v":0}]
[{"$nulls":4},"Instalação Catavento (R$)"]
[{"$nulls":4},"Total das Obras",null,{"$f":"SUM(G14:H16)","v":0}]
["PLANILHA ORÇAMENTÁRIA"]
["codigo","ITEM","COD","DESCRIÇÃO DOS SERVIÇOS","UNID.","QUANT.","PREÇO (R$)"]
[{"$nulls":6},"UNITÁRIO C/BDI","TOTAL COM BDI"]
[null,3,null,"Poços Sedimentares profundidade média 180m"]
["composição","3.1",null,"Locação, acompanhamento da perfuração, teste de vazão e da instalação do poço, por profissional habilitado.","un",{"$f":"G11","v":6}]
["composição","3.2",null,"Limpeza do terreno - Raspagem e limpeza manual do terreno com destocamento de arvore até 15cm.","m²",{"$f":"G11*300","v":1800}]
["composição","3.3",null,"Montagem, instalação e desinstalação de sonda.","un",{"$f":"G11","v":6}]
["composição","3.4",null,"Perfuração de Poço em rocha sedimentar com diâmetro de 16\".","m",{"$f":"G11*20","v":120}]
["composição","3.5",null,"Perfuração de Poço em rocha sedimentar com diâmetro de 12 1/4\".","m",{"$f":"G11*160","v":960}]
["composição","3.6",null,"Fornecimento e instalação de Cap fêmea de ponta de tubo de 6\", para impedir contaminação do poço, inclusive anel de vedação e borracha.","un",{"$f":"G11","v":6}]
["composição","3.7",null,"Fornecimento e instalação de Cap PVC geomecânico REF. em DN 6\" para vedação do fundo do filtro, inclusive anel de vedação e borracha.","un",{"$f":"G11","v":6}]
["composição","3.8",null,"Fornecimento e instalação de Cap PVC geomecânico STD. em DN 6\" para vedação do fundo do filtro, inclusive anel de vedação e borracha.","un",10]
["composição","3.9",null,"Fornecimento e instalação de Revestimento do Poço em Tubo PVC Geomecânico STD em DN de 6\" com luvas e rosca (Para poços de até no máximo 150m de profundidade).","m",{"$f":"G11*150","v":900}]
["composição","3.10",null,"Fornecimento e instalação de Revestimento do Poço em Tubo PVC Geomecânico REF em DN de 6\" com luvas e rosca (Para poços de 150 m a 300 m de profundidade).","m",{"$f":"30*G11","v":180}]
["composição","3.11",null,"Fornecimento e aplicação de nata de cimento para cimentação anelar e isolamento de aquíferos e proteção sanitária em conformidade com a NBR 12244.","m³",{"$f":"1300*3.1416*(0.1556*0.1556-0.0762*0.0762)+F25*3.1416*(0.2032*0.2032-0.0762*0.0762)","v":88.54}]
["composição","3.12",null,"Fornecimento e instalação de Filtro em Tubo de PVC Geomecânico REF. em DN de 6\" com luva e rosca com aberturas de 0,5mm. (Para poços de 150m até no máximo 300m de profundidade).","m",{"$f":"G11*30","v":180}]
["composição","3.13",null,"Fornecimento e instalação de Filtro em Tubo de PVC Geomecânico STD. em DN de 6\" com luva e rosca com aberturas de 0,5mm. (Para poços até 150m de profundidade).","m",300]
["composição","3.14",null,"Fornecimento e instalação de Pré-filtro preenchido com material quartzoso previamente lavado, peneirado e selecionado com granulometria variável de 2 - 4 mm em conformidade com NBR 12244. ","m³",{"$f":"F33*3.1416*(0.1556*0.1556-0.0762*0.0762)","v":10.41}]
["composição","3.15",null,"Realização de limpeza do poço, realizado mediante a utilização de compressor de ar pelo método de fluxo e refluxo, incluindo operação e a instalação de compressor de ar, em conformidade com a NBR 12244. ","un",{"$f":"G11","v":6}]
["composição","3.16",null,"Realização de desenvolvimento e estimulação do poço, realizado mediante a utilização de compressor de ar pelo método de fluxo e refluxo, incluindo operação e a instalação de compressor de ar, em conformidade com a NBR12244. ","un",{"$f":"G11","v":6}]
["composição","3.17",null,"Realização de teste de vazão e de bombeamento do poço, incluindo operação e Instalação motor-bomba submersa e grupo gerador elétrico, em conformidade com a NBR 12244.","un",{"$f":"G11","v":6}]
["composição","3.18",null,"Realização de Perfilagem geofísica do poço em conformidade com a NBR 12244.","un",{"$f":"G11","v":6}]
["composição","3.19",null,"Realização de desinfecção do poço, incluindo material de limpeza, instalação e desinstalação de compressor, combustível e operador.","un",{"$f":"G11","v":6}]
["composição","3.20",null,"Realização de Análise Físico-Química e bacteriológica da água em conformidade com a NR 518, incluindo a coleta, taxas e transporte. ","un",{"$f":"G11","v":6}]
["composição","3.21",null,"Obtenção junto aos órgãos competente da Outorga de funcionamento e uso de recursos hídricos - CPRH/PE.","un",{"$f":"G11","v":6}]
["composição","3.22",null,"Construção de laje de proteção sanitária em concreto armado para qualquer tipo de estrutura, inclusive forma e ferragens, nas dimensões-1,0m x 1,0m x 0,15m, com declividade de 2% em relação ao centro do poço para as bordas em conformidade com a NBR 12244.","m³",{"$f":"G11*0.15","v":0.9}]
[null,6,null,"Poços Sedimentares - Montagem e Instalação",{"$nulls":5},{"$f":"H44/10","v":0}]
["composição","6.3",null,"Fornecimento e assentamento de tubos e conexões em PVC tipo Edutor, azul, Diâmetro Nominal de 50 mm (interligação do poço a caixa do reservatório).","m",{"$f":"G11*150","v":900}]
["composição","6.4",null,"Fornecimento, montagem e instalação de poço tubular com conjunto de motor-bomba submersa, monofásico, 220 volts, 60 Hz, com motor lubrificado e refrigerado a água, acoplado a bombeador multiestágio com válvula de retenção incorporada e reatores em bronze, diâmetro da tubulação 2\", capaz de vencer uma altura manométrica mínima de 200 mca com vazão média de 15 m³/h, incluindo quadro de comando compatível com o modelo de bomba instalada e cabo, flexível, trifásico, isolado, tensão de 600V/1000V em conformidade com a NBR 7288 e diâmetro compatível com a bomba. ","un",{"$f":"G11","v":6}]
["composição","6.5",null,"Locação de rede de adutora para interligação do poço ao reservatório e deste ao bebedouro.","m",{"$f":"G11*150","v":900}]
["composição","6.6",null,"Fornecimento e assentamento de tubos e conexões em PVC, marrom, diâmetros de 32mm, soldável.","m",{"$f":"G11*200","v":1200}]
["composição","6.7",null,"Escavação manual de vala de fundação para instalação de tubulação de adutora em material de 1ª e 2ª categoria, com dimensões de 0,40 m (prof.) x 0,30 m (larg.), incluindo regularização manual do fundo da vala (poço ao reservatório).  ","m³",{"$f":"F45*0.4*0.3","v":108}]
["composição","6.8",null,"Aterro manual de valas de fundação com 0,40 m de profundidade, 0,30 m de largura, com avaliação visual da compactação (poço ao reservatório).","m³",{"$f":"F49-(3.1416*0.025*0.025*150*G11)","v":106.23}]
["composição","6.9",null,"Fornecimento e instalação de caixa d'água de fibra de 5m³, sobre base de concreto armado, incluído tubulação de dreno, lavagem e ladrão.","un",{"$f":"G11","v":6}]
["composição","6.10",null,"Fornecimento e montagem de cerca de proteção construída com mourões de concreto armado  (H=2,5 m), com ponta virada e com 11 fios de arame farpado, incluindo chumbamento e arame de fixação. ","m",{"$f":"G11*14.7","v":88.2}]
["composição","6.11",null,"Fornecimento, montagem e instalação de portão de ferro tubular, tela em aço galvanizado, dobradiças e fechadura para passagem de pedestre, medindo 1,80m x 1,10m, incluindo mourão de sustentação.","un",{"$f":"G11","v":6}]
["composição","6.12",null,"Escavação manual de vala de fundação em material de 1 e 2ª categoria, com dimensões de 0,40 m (prof.) x 0,30 m (larg.), incluindo regularização manual do fundo da vala (reservatório ao bebedouro).","m³",{"$f":"G11*200*0.4*0.3","v":144}]
["composição","6.13",null,"Aterro manual de valas de fundação com 0,40 m de profundidade, 0,30 m de largura, com avaliação visual da compactação (reservatório ao bebedouro).","m³",{"$f":"F54-(3.1416*0.016*0.016*200*G11)","v":143.03}]
["composição","6.14",null,"Execução de bebedouro em concreto armado, incluindo a instalação hidráulica.","un",{"$f":"G11","v":6}]
["composição","6.15",null,"Execução de base de sustentação do reservatório em concreto armado, diâmetro de 2,06 m e altura de 1,10 m, conforme projeto.","un",{"$f":"G11","v":6}]
[null,"6.1.",null,"Poços Sedimentares - Instalações eletricas"]
["composição","6.1.1E",null,"Elaboração de projeto de rede elétrica de baixa tensão, incluído aprovação junto a concessionária.","m",{"$f":"G13*200","v":1200}]
["composição","6.1.2E",null,"Execução de rede elétrica de baixa tensão - cabo de alumínio de 25 mm² (3+1).","m",{"$f":"G13*200","v":1200}]
["composição","6.1.3E",null,"Poste de Concreto (fornecimento e instalação)","un",{"$f":"G13*5","v":30}]
["composição","6.1.4E",null,"Estrutura IM-A (fornecimento e instalação)","un",{"$f":"G13*3","v":18}]
["composição","6.1.5E",null,"Estrutura IM-1 (fornecimento e instalação)",null,{"$f":"G13*2","v":12}]
["composição","6.1.6E",null,"Fornecimento e montagem de quadro de medição no padrão CELPE para 3 ou 4 fios, inclusive haste de aterramento, condutores, conectores, eletroduto, disjuntor, caixa para disjuntor, bucha, arruela e tubo.","un",{"$f":"G13","v":6}]
["composição","6.1.7E",null,"Abrigo de proteção em concreto armado para quadro de comando de bomba.","un",{"$f":"G13","v":6}]
["composição","6.1.8E",null,"Montagem de sistema de aterramento com haste de aterramento tipo Copperwelder, conector e cabo de cobre nu com bitola de 25 mm² para proteção de sistema elétrico em conformidade com a NBR 5410.","un",{"$f":"G11","v":6}]
[]
[]
[]
[{"$nulls":9},"cristalino"]
[{"$nulls":9},"bomba",null,"catavento"]
[{"$nulls":9},{"$f":"SUM(#REF!+#REF!+#REF!)","v":{"$error":"#REF!"}},null,{"$f":"SUM(#REF!+#REF!+#REF!)","v":{"$error":"#REF!"}}]
[{"$nulls":9},"perfuração","instalação","perfuração","instalação"]
[{"$nulls":9},{"$f":"J72-#REF!","v":{"$error":"#REF!"}},{"$f":"J72-J74","v":{"$error":"#REF!"}},{"$f":"L72-#REF!","v":{"$error":"#REF!"}},{"$f":"L72-L74","v":{"$error":"#REF!"}}]
[]
[{"$nulls":9},"sedimentar","Perfuração",{"$f":"J77-J44","v":{"$error":"#REF!"}}]
[{"$nulls":9},{"$f":"#REF!+J20+J44","v":{"$error":"#REF!"}},"Instalação",{"$f":"J44","v":0}]
[{"$nulls":9},"geral"]
[{"$nulls":9},{"$f":"G16/(E11+G11)","v":0}]

{"sheet":"Poço Só Instalação","index":2,"n_rows":60,"n_cols":10,"rows_kept":60,"cut":false,"hidden":false,"merged":[[11,0,12,3],[11,6,11,7],[12,6,12,7],[1,0,4,7],[5,0,6,2],[5,3,6,7],[7,0,8,2],[7,3,8,7],[9,0,10,3],[9,4,9,5],[9,6,9,7],[10,4,10,5],[10,6,10,7],[14,4,14,5],[14,6,14,7],[15,4,15,5],[15,6,15,7],[13,0,16,3],[13,4,13,5],[13,6,13,7],[16,4,16,5],[16,6,16,7],[17,0,17,7],[18,0,19,0],[18,1,19,1],[18,3,19,3],[18,4,19,4],[18,5,19,5],[18,6,18,7],[18,2,19,2],[61,9,61,12],[62,9,62,10],[62,11,62,12],[63,9,63,10],[63,11,63,12]]}
[]
[]
[]
[]
[]
["Obra:  ",null,null," Perfuração de Poços Tubulares"]
[]
["Local:",null,null,"Comunidades dispersas situadas na zona rural dos municípios de Afogados da Ingazeira, Afrânio, Águas Belas, Alagoinha, Araripina, Arcoverde, Belém do São Francisco, Betânia, Bodocó, Bom Conselho, Brejinho, Buíque, Cabrobó, Caetés, Calumbi, Carnaíba, Carnaubeira da Penha, Cedro, Custódia, Dormentes, Exu, Flores, Floresta, Granito, Iati, Ibimirim, Iguaracy, Inajá, Ingazeira, Ipubi, Itacuruba, Itaíba, Itapetim, Jatobá, Lagoa Grande, Manari, Mirandiba, Moreilândia, Orocó, Ouricuri, Paranatama, Parnamirim, Pedra, Pesqueira, Petrolândia, Petrolina, Quixaba, Salgueiro, Saloá, Santa Cruz da Venerada, Santa Cruz da Baixa Verde, Santa Filomena, Santa Maria da Boa Vista, Santa Terezinha, São José do Belmonte, São José do Egito, Serra Talhada, Serrita, Sertânia, Solidão, Tabira, Tacaratu, Terra Nova, Trindade, Triunfo, Tupanatinga, Tuparetama, Venturosa e Verdejante, na área de abrangência da 3ª Superintendência Regional da CODEVASF."]
[]
["Total de poços a perfurar",null,null,null,"Cristalino",null,"Sedimentar"]
[{"$nulls":4},0,null,0]
["Total de poços a instalar",null,null,null,"Bomba","Cata-vento","Bomba"]
[{"$nulls":4},100,100,0]
[" Data Base Utilizada para Insumos: SINAPI Junho/2017 Não Desonerado; ORSE Maio/2017; Cotações",null,null,null,"Valor Perfuração (R$)",null,0]
[{"$nulls":4},"Instalação Motobomba (R$)",null,{"$f":"SUM(H22:H44)","v":0}]
[{"$nulls":4},"Instalação Catavento (R$)",null,{"$f":"SUM(H46:H60)","v":0}]
[{"$nulls":4},"Total das Obras",null,{"$f":"SUM(G14:H16)","v":0}]
["PLANILHA ORÇAMENTÁRIA"]
["codigo","ITEM","COD","DESCRIÇÃO DOS SERVIÇOS","UNID.","QUANT.","PREÇO (R$)"]
[{"$nulls":6},"UNITÁRIO C/BDI","TOTAL COM BDI"]
[null,null,null,"Poços Cristalinos - Montagem e Instalação com bomba submersa."]
["composição","2.14",null,"Obtenção junto aos órgãos competente da Outorga de funcionamento e uso de recursos hídricos - CPRH/PE.","un",{"$f":"E13","v":100}]
["composição","2.15",null,"Construção de laje de proteção sanitária em concreto armado para qualquer tipo de estrutura, FCK = 15 Mpa,  virado em betoneira na obra, incluindo aplicação e adensamento, forma, escoramento e ferragens, nas dimensões-1,0m x 1,0m x 0,15m, com declividade de 2% em relação ao centro do poço para as bordas, em conformidade com a NBR 12244.","m³",{"$f":"(E13)*0.15","v":15}]
["composição","4.1",null,"Fornecimento e assentamento de tubos e conexões em PVC tipo Edutor, azul, Diâmetro Nominal de 50 mm (interligação do poço à caixa do reservatório).","m",{"$f":"E13*30","v":3000}]
["composição","4.2",null,"Fornecimento, montagem e instalação de poço profundo tubular com diâmetro de 6\", incluindo conjunto motor-bomba submersa e peças, diâmetro da tubulação de recalque de até 2\", profundidade da bomba entre 40 m e 56 m, inclusive rede elétrica do quadro de comando à bomba.","un",{"$f":"E13","v":100}]
["composição","4.3",null,"Limpeza do terreno - Raspagem e limpeza manual do terreno com destocamento de arvore até 15cm (área de bebedouro e do reservatório).","m²",{"$f":"(E13)*10.25","v":1025}]
["composição","4.4",null,"Escavação manual de vala de fundação em material de 1 e 2ª categoria, com dimensões de 0,40 m (prof.) x 0,30 m (larg.), incluindo regularização manual do fundo da vala (reservatório ao bebedouro).","m³",{"$f":"E13*20*0.4*0.3","v":240}]
["composição","4.5",null,"Aterro manual de valas de fundação com 0,40 m de profundidade, 0,30 m largura, com avaliação visual da compactação (reservatório ao bebedouro).","m³",{"$f":"F27-(3.1416*0.016*0.016*20*E3)","v":240}]
["composição","4.6",null,"Escavação manual de vala de fundação para instalação de tubulação de adutora em material de 1ª e 2ª categoria, com dimensões de 0,40 m (prof.) x 0,30 m (larg.), incluindo regularização manual do fundo da vala (poço ao reservatório).  ","m³",{"$f":"F24*0.4*0.3","v":360}]
["composição","4.7",null,"Aterro manual de valas de fundação com 0,40 m de profundidade, 0,30 m de largura, com avaliação visual da compactação (poço ao reservatório).","m³",{"$f":"F29-(3.1416*0.025*0.025*30*E13)","v":354.11}]
["composição","4.8",null,"Fornecimento e assentamento de tubos e conexões em PVC, marrom, diâmetros de 32mm, soldável.","m",{"$f":"E13*20","v":2000}]
["composição","4.9",null,"Fornecimento e instalação de caixa d'água de fibra de 5m³, sobre base de concreto armado, incluído tubulação de dreno, lavagem e ladrão.","un",{"$f":"E13","v":100}]
["composição","4.10",null,"Fornecimento e montagem de cerca de proteção construída com mourões de concreto armado  (H=2,5 m), com ponta virada e com 11 fios de arame farpado, incluindo chumbamento e arame de fixação. ","m",{"$f":"E13*14.7","v":1470}]
["composição","4.11",null,"Fornecimento, montagem e instalação de portão de ferro tubular, tela em aço galvanizado, dobradiças e fechadura para passagem de pedestre, medindo 1,80m x 1,10m, incluindo mourão de sustentação.","un",{"$f":"E13","v":100}]
["composição","4.12",null,"Execução de bebedouro em concreto armado, incluindo a instalação hidráulica.","un",{"$f":"E13","v":100}]
["composição","4.13",null,"Execução de base de sustentação do reservatório em concreto armado, diâmetro de 2,06 m e altura de 1,10 m, conforme projeto.","un",{"$f":"E13","v":100}]
[null,null,null,"Instalações Eletricas - Poços Cristalinos"]
["composição","4.1.1",null,"Elaboração de projeto de rede elétrica de baixa tensão, incluído aprovação junto a concessionária.","m",{"$f":"E13*200","v":20000}]
["composição","4.1.2",null,"Execução de rede elétrica de baixa tensão - cabo de alumínio de 25 mm² (3+1).","m",{"$f":"E13*200","v":20000}]
["composição","4.1.3",null,"Poste de Concreto (fornecimento e instalação)","un",{"$f":"E13*5","v":500}]
["composição","4.1.4",null,"Estrutura IM-A (fornecimento e instalação)","un",{"$f":"E13*3","v":300}]
["composição","4.1.5",null,"Estrutura IM-1 (fornecimento e instalação)",null,{"$f":"E13*2","v":200}]
["composição","4.1.6",null,"Fornecimento e montagem de quadro de medição no padrão CELPE para 3 ou 4 fios, inclusive haste de aterramento, condutores, conectores, eletroduto, disjuntor, caixa para disjuntor, bucha, arruela e tubo.","un",{"$f":"E13","v":100}]
["composição","4.1.7",null,"Abrigo de proteção em concreto armado para quadro de comando de bomba.","un",{"$f":"E13","v":100}]
[null,null,null,"Poços Cristalinos - Montagem e Instalação com cata-vento.",{"$nulls":5},{"$f":"H45/75","v":0}]
["composição","2.14",null,"Obtenção junto aos órgãos competente da Outorga de funcionamento e uso de recursos hídricos - CPRH/PE.","un",{"$f":"F13","v":100}]
["composição","2.15",null,"Construção de laje de proteção sanitária em concreto armado para qualquer tipo de estrutura, FCK = 15 Mpa,  virado em betoneira na obra, incluindo aplicação e adensamento, forma, escoramento e ferragens, nas dimensões-1,0m x 1,0m x 0,15m, com declividade de 2% em relação ao centro do poço para as bordas, em conformidade com a NBR 12244.","m³",{"$f":"(F13)*0.15","v":15}]
["composição","5.1",null,"Fornecimento e assentamento de tubos e conexões em PVC tipo Edutor, azul, Diâmetro Nominal de 50 mm (interligação do poço à caixa do reservatório).","m",{"$f":"F13*30","v":3000}]
["composição","5.2",null,"Fornecimento, montagem e instalação de poço profundo tubular com diâmetro de 6\", com cata-vento de base triangular, diâmetro da tubulação 1 1/4\", profundidade do injetor entre 40m e 56m, incluindo fixação da torre sobre base de concreto no traço 1:2:3.","un",{"$f":"F13","v":100}]
["composição","5.3",null,"Limpeza do terreno - Raspagem e limpeza manual do terreno com destocamento de arvore até 15cm (área de bebedouro e do reservatório).","m²",{"$f":"(F13)*10.25","v":1025}]
["composição","5.4",null,"Escavação manual de vala de fundação em material de 1 e 2ª categoria, com dimensões de 0,40 m (prof.) x 0,30 m (larg.), incluindo regularização manual do fundo da vala (reservatório ao bebedouro).","m³",{"$f":"F13*20*0.4*0.3","v":240}]
["composição","5.5",null,"Aterro manual de valas de fundação com 0,40 m de profundidade, 0,30 m largura, com avaliação visual da compactação (reservatório ao bebedouro).","m³",{"$f":"F51-(3.1416*0.016*0.016*20*F13)","v":238.39}]
["composição","5.6",null,"Escavação manual de vala de fundação para instalação de tubulação de adutora em material de 1ª e 2ª categoria, com dimensões de 0,40 m (prof.) x 0,30 m (larg.), incluindo regularização manual do fundo da vala (poço ao reservatório).  ","m³",{"$f":"F48*0.4*0.3","v":360}]
["composição","5.7",null,"Aterro manual de valas de fundação com 0,40 m de profundidade, 0,30 m de largura, com avaliação visual da compactação (poço ao reservatório).","m³",{"$f":"F53-(3.1416*0.025*0.025*30*F13)","v":354.11}]
["composição","5.8",null,"Fornecimento e assentamento de tubos e conexões em PVC, marrom, diâmetros de 32mm, soldável.","m",{"$f":"F13*20","v":2000}]
["composição","5.9",null,"Fornecimento e instalação de caixa d'água de fibra de 5m³, sobre base de concreto armado, incluído tubulação de dreno, lavagem e ladrão.","un",{"$f":"F13","v":100}]
["composição","5.10",null,"Fornecimento e montagem de cerca de proteção construída com mourões de concreto armado  (H=2,5 m), com ponta virada e com 11 fios de arame farpado, incluindo chumbamento e arame de fixação. ","m",{"$f":"F13*14.7","v":1470}]
["composição","5.11",null,"Fornecimento, montagem e instalação de portão de ferro tubular, tela em aço galvanizado, dobradiças e fechadura para passagem de pedestre, medindo 1,80m x 1,10m, incluindo mourão de sustentação.","un",{"$f":"F13","v":100}]
["composição","5.12",null,"Execução de bebedouro em concreto armado, incluindo a instalação hidráulica.","un",{"$f":"F13","v":100}]
["composição","5.13",null,"Execução de base de sustentação do reservatório em concreto armado, diâmetro de 2,06 m e altura de 1,10 m, conforme projeto.","un",{"$f":"F13","v":100}]

{"sheet":"Cristalino Completo","index":3,"n_rows":87,"n_cols":16,"rows_kept":87,"cut":false,"hidden":false,"merged":[[78,9,78,10],[78,11,78,12],[79,9,79,10],[79,11,79,12],[77,9,77,12],[1,0,4,7],[5,0,6,2],[5,3,6,7],[7,0,8,2],[7,3,8,7],[12,6,12,7],[13,4,13,5],[9,0,10,3],[11,6,11,7],[10,6,10,7],[10,4,10,5],[9,4,9,5],[9,6,9,7],[11,0,12,3],[13,6,13,7],[15,4,15,5],[15,6,15,7],[13,0,16,3],[17,0,17,7],[18,0,19,0],[18,1,19,1],[18,3,19,3],[18,4,19,4],[18,5,19,5],[16,6,16,7],[14,4,14,5],[14,6,14,7],[16,4,16,5],[18,6,18,7]]}
[]
[]
[]
[]
[]
["Obra:  ",null,null," Perfuração de Poços Tubulares"]
[]
["Local:",null,null,"Comunidades dispersas situadas na zona rural dos municípios de Afogados da Ingazeira, Afrânio, Águas Belas, Alagoinha, Araripina, Arcoverde, Belém do São Francisco, Betânia, Bodocó, Bom Conselho, Brejinho, Buíque, Cabrobó, Caetés, Calumbi, Carnaíba, Carnaubeira da Penha, Cedro, Custódia, Dormentes, Exu, Flores, Floresta, Granito, Iati, Ibimirim, Iguaracy, Inajá, Ingazeira, Ipubi, Itacuruba, Itaíba, Itapetim, Jatobá, Lagoa Grande, Manari, Mirandiba, Moreilândia, Orocó, Ouricuri, Paranatama, Parnamirim, Pedra, Pesqueira, Petrolândia, Petrolina, Quixaba, Salgueiro, Saloá, Santa Cruz da Venerada, Santa Cruz da Baixa Verde, Santa Filomena, Santa Maria da Boa Vista, Santa Terezinha, São José do Belmonte, São José do Egito, Serra Talhada, Serrita, Sertânia, Solidão, Tabira, Tacaratu, Terra Nova, Trindade, Triunfo, Tupanatinga, Tuparetama, Venturosa e Verdejante, na área de abrangência da 3ª Superintendência Regional da CODEVASF."]
[]
["Total de poços a perfurar",null,null,null,"Cristalino",null,"Sedimentar"]
[{"$nulls":4},{"$f":"E13+F13","v":400},null,0]
["Total de poços a instalar",null,null,null,"Bomba","Cata-vento","Bomba"]
[{"$nulls":4},180,220,0]
[" Data Base Utilizada para Insumos: SINAPI Junho/2017 Não Desonerado; ORSE Maio/2017; Cotações",null,null,null,"Valor Perfuração (R$)",null,{"$f":"ROUND((SUM(H22:H40)),2)","v":0},null,{"$f":"G14/E11","v":0},null,{"$f":"G14","v":0}]
[{"$nulls":4},"Instalação Motobomba (R$)",null,{"$f":"SUM(H42:H62)","v":0},null,{"$f":"G15/E13","v":0},{"$f":"I14+I15","v":0},{"$f":"G15","v":0}]
[{"$nulls":4},"Instalação Catavento (R$)",null,{"$f":"SUM(H64:H76)","v":0},null,{"$f":"G16/F13","v":0},{"$f":"I16+I14","v":0},{"$f":"G16","v":0}]
[{"$nulls":4},"Total das Obras",null,{"$f":"SUM(G14:H16)","v":0},null,{"$f":"G17","v":0}]
["PLANILHA ORÇAMENTÁRIA"]
["codigo","ITEM","COD","DESCRIÇÃO DOS SERVIÇOS","UNID.","QUANT.","PREÇO (R$)"]
[{"$nulls":6},"UNITÁRIO C/BDI","TOTAL COM BDI"]
[null,2,null,"Poços Cristalinos profundidade média 60m - PERFURAÇÃO",{"$nulls":5},{"$f":"H21/150","v":0}]
["composição","2.1",null,"Locação, acompanhamento da perfuração, teste de vazão e da instalação do poço, por profissional habilitado.","un",{"$f":"E11","v":400},null,null,null,"2.1",735.74,"Locação, acompanhamento da perfuração, teste de vazão e da instalação do poço, por profissional habilitado.","un",150,735.74,110361]
["composição","2.2",null,"Limpeza do terreno - Raspagem e limpeza manual do terreno com destocamento de arvore até 15cm","m²",{"$f":"E11*4","v":1600},null,null,null,"2.2",2.98,"Limpeza do terreno - Raspagem e limpeza manual do terreno com destocamento de arvore até 15cm","m²",600,2.98,1788]
["composição","2.3",null,"Montagem, instalação e desinstalação de sonda.","un",{"$f":"E11","v":400},null,null,null,"2.3",232.67,"Montagem, instalação e desinstalação de sonda.","un",150,232.67,34900.5]
["composição","2.4",null,"Perfuração de poço com diâmetro mínimo de 8\" (solo decomposto).","m",{"$f":"E11*10","v":4000},null,null,null,"2.4",120.96,"Perfuração de poço com diâmetro mínimo de 8\" (solo decomposto).","m",1500,120.96,181440]
["composição","2.5",null,"Perfuração de poço com diâmetro mínimo de 6\" (rocha cristalina).","m",{"$f":"E11*50","v":20000},null,null,null,"2.5",104.92,"Perfuração de poço com diâmetro mínimo de 6\" (rocha cristalina).","m",7500,104.92,786900]
["composição","2.6",null,"Fornecimento e instalação de Revestimento do Poço em Tubo PVC Geomecânico STD em DN de 6\" com luvas e rosca.","m",{"$f":"F25","v":4000},null,null,null,"2.6",116.2,"Fornecimento e instalação de Revestimento do Poço em Tubo PVC Geomecânico STD em DN de 6\" com luvas e rosca.","m",1500,116.2,174300]
["composição","2.7",null,"Cimentação anelar do poço, com argamassa de cimento e areia produzida no traço 1:3.","m³",{"$f":"(E11*10*3.1416*(0.1016*0.1016-0.0762*0.0762)+50*F40*3.1416*(0.0762*0.0762-0.0508*0.0508))","v":66.89},null,null,null,"2.7",426.44,"Cimentação anelar do poço, com argamassa de cimento e areia produzida no traço 1:3.","m³",31.42,426.44,13398.74]
["composição","2.8",null,"Realização de limpeza do poço, realizado mediante a utilização de compressor de ar pelo método de fluxo e refluxo, incluindo operação e a instalação de compressor de ar, em conformidade com a NBR 12244. ","un",{"$f":"E11","v":400},null,null,null,"2.8",102.73,"Realização de limpeza do poço, realizado mediante a utilização de compressor de ar pelo método de fluxo e refluxo, incluindo operação e a instalação de compressor de ar, em conformidade com a NBR 12244. ","un",150,102.73,15409.5]
["composição","2.9",null,"Realização de desenvolvimento e estimulação do poço, realizado mediante a utilização de compressor de ar pelo método de fluxo e refluxo, incluindo operação e a instalação de compressor de ar, em conformidade com a NBR12244. ","un",{"$f":"E11","v":400},null,null,null,"2.9",102.73,"Realização de desenvolvimento e estimulação do poço, realizado mediante a utilização de compressor de ar pelo método de fluxo e refluxo, incluindo operação e a instalação de compressor de ar, em conformidade com a NBR12244. ","un",150,102.73,15409.5]
["composição","2.10",null,"Fornecimento e instalação de Cap fêmea de ponta de tubo de 6\", para impedir contaminação do poço, inclusive anel de vedação e borracha.","un",{"$f":"F22","v":400},null,null,null,"2.10",113.58,"Fornecimento e instalação de Cap fêmea de ponta de tubo de 6\", para impedir contaminação do poço, inclusive anel de vedação e borracha.","un",150,113.58,17037]
["composição","2.11",null,"Realização de desinfecção do poço, incluindo material de limpeza, instalação e desinstalação de compressor, combustível e operador.","un",{"$f":"E11","v":400},null,null,null,"2.11",72.650000000000006,"Realização de desinfecção do poço, incluindo material de limpeza, instalação e desinstalação de compressor, combustível e operador.","un",150,72.650000000000006,10897.5]
["composição","2.12",null,"Realização de análise físico-química e bacteriológica da água em conformidade com a NR 518, incluindo a coleta, taxas e transporte. ","un",{"$f":"E11","v":400},null,null,null,"2.12",320.24,"Realização de análise físico-química e bacteriológica da água em conformidade com a NR 518, incluindo a coleta, taxas e transporte. ","un",150,320.24,48036]
["composição","2.13",null,"Realização de teste de vazão e de bombeamento do poço, incluindo operação e instalação de motobomba submersa e grupo gerador eletrico, em conformidade com a NBR 12244.","un",{"$f":"E11","v":400},null,null,null,"2.13",731.68,"Realização de teste de vazão e de bombeamento do poço, incluindo operação e instalação de motobomba submersa e grupo gerador eletrico, em conformidade com a NBR 12244.","un",150,731.68,109752]
["composição","2.14",null,"Obtenção junto aos órgãos competente da Outorga de funcionamento e uso de recursos hídricos - CPRH/PE.","un",{"$f":"E11","v":400},null,null,null,"2.14",1429.2,"Obtenção junto aos órgãos competente da Outorga de funcionamento e uso de recursos hídricos - CPRH/PE.","un",150,1429.2,214380]
["composição","2.15",null,"Construção de laje de proteção sanitária em concreto armado para qualquer tipo de estrutura, FCK = 15 Mpa,  virado em betoneira na obra, incluindo aplicação e adensamento, forma, escoramento e ferragens, nas dimensões-1,0m x 1,0m x 0,15m, com declividade de 2% em relação ao centro do poço para as bordas, em conformidade com a NBR 12244.","m³",{"$f":"E11*0.15","v":60},null,null,null,"2.15",596.13,"Construção de laje de proteção sanitária em concreto armado para qualquer tipo de estrutura, FCK = 15 Mpa,  virado em betoneira na obra, incluindo aplicação e adensamento, forma, escoramento e ferragens, nas dimensões-1,0m x 1,0m x 0,15m, com declividade de 2% em relação ao centro do poço para as bordas, em conformidade com a NBR 12244.","m³",22.5,596.13,13412.93]
["composição","2.16",null,"Fornecimento e instalação de Pré-filtro preenchido com material quartzoso previamente lavado, peneirado e selecionado com granulometria variável de 2 - 4 mm em conformidade com NBR 12244. ","m³",{"$f":"F39*3.1416*(0.0762*0.0762-0.0508*0.0508)","v":2.0299999999999998},null,null,null,"2.16",1413.29,"Fornecimento e instalação de Pré-filtro preenchido com material quartzoso previamente lavado, peneirado e selecionado com granulometria variável de 2 - 4 mm em conformidade com NBR 12244. ","m³",2.0299999999999998,1413.29,2868.98]
["composição","2.17",null,"Fornecimento e instalação de Tubo PVC Geo mecanico STD DN de 4\" com luvas e rosca.","m",{"$f":"20*50","v":1000},null,null,null,"2.17",66.77,"Fornecimento e instalação de Tubo PVC Geo mecanico STD DN de 4\" com luvas e rosca.","m",1000,66.77,66770]
["composição","2.18",null,"Fornecimento e instalação de Filtro Geo mecanico STD DN de 4\" com luvas e rosca.","m",{"$f":"20*10","v":200},null,null,null,"2.18",55.97,"Fornecimento e instalação de Filtro Geo mecanico STD DN de 4\" com luvas e rosca.","m",200,55.97,11194]
["composição","2.19",null,"Fornecimento e instalação de Cap PVC geomecânico STD. em DN 4\" para vedação do fundo do filtro, inclusive anel de vedação e borracha.","un",20,null,null,null,"2.19",55.73,"Fornecimento e instalação de Cap PVC geomecânico STD. em DN 4\" para vedação do fundo do filtro, inclusive anel de vedação e borracha.","un",20,55.73,1114.5999999999999]
[null,4,null,"Poços Cristalinos - Montagem e Instalação com bomba submersa.",{"$nulls":5},{"$f":"H41/75","v":0}]
["composição","4.1",null,"Fornecimento e assentamento de tubos e conexões em PVC tipo Edutor, azul, Diâmetro Nominal de 50 mm (interligação do poço à caixa do reservatório).","m",{"$f":"E13*30","v":5400}]
["composição","4.2",null,"Fornecimento, montagem e instalação de poço profundo tubular com diâmetro de 6\", incluindo conjunto motor-bomba submersa e peças, diâmetro da tubulação de recalque de até 2\", profundidade da bomba entre 40 m e 56 m, inclusive rede elétrica do quadro de comando à bomba.","un",{"$f":"E13","v":180}]
["composição","4.3",null,"Limpeza do terreno - Raspagem e limpeza manual do terreno com destocamento de arvore até 15cm (área de bebedouro e do reservatório).","m²",{"$f":"(E13)*10.25","v":1845}]
["composição","4.4",null,"Escavação manual de vala de fundação em material de 1 e 2ª categoria, com dimensões de 0,40 m (prof.) x 0,30 m (larg.), incluindo regularização manual do fundo da vala (reservatório ao bebedouro).","m³",{"$f":"E13*20*0.4*0.3","v":432}]
["composição","4.5",null,"Aterro manual de valas de fundação com 0,40 m de profundidade, 0,30 m largura, com avaliação visual da compactação (reservatório ao bebedouro).","m³",{"$f":"F45-(3.1416*0.016*0.016*20*E3)","v":432}]
["composição","4.6",null,"Escavação manual de vala de fundação para instalação de tubulação de adutora em material de 1ª e 2ª categoria, com dimensões de 0,40 m (prof.) x 0,30 m (larg.), incluindo regularização manual do fundo da vala (poço ao reservatório).  ","m³",{"$f":"F42*0.4*0.3","v":648}]
["composição","4.7",null,"Aterro manual de valas de fundação com 0,40 m de profundidade, 0,30 m de largura, com avaliação visual da compactação (poço ao reservatório).","m³",{"$f":"F47-(3.1416*0.025*0.025*30*E13)","v":637.4}]
["composição","4.8",null,"Fornecimento e assentamento de tubos e conexões em PVC, marrom, diâmetros de 32mm, soldável.","m",{"$f":"E13*20","v":3600}]
["composição","4.9",null,"Fornecimento e instalação de caixa d'água de fibra de 5m³, sobre base de concreto armado, incluído tubulação de dreno, lavagem e ladrão.","un",{"$f":"E13","v":180}]
["composição","4.10",null,"Fornecimento e montagem de cerca de proteção construída com mourões de concreto armado  (H=2,5 m), com ponta virada e com 11 fios de arame farpado, incluindo chumbamento e arame de fixação. ","m",{"$f":"E13*14.7","v":2646}]
["composição","4.11",null,"Fornecimento, montagem e instalação de portão de ferro tubular, tela em aço galvanizado, dobradiças e fechadura para passagem de pedestre, medindo 1,80m x 1,10m, incluindo mourão de sustentação.","un",{"$f":"E13","v":180}]
["composição","4.12",null,"Execução de bebedouro em concreto armado, incluindo a instalação hidráulica.","un",{"$f":"E13","v":180}]
["composição","4.13",null,"Execução de base de sustentação do reservatório em concreto armado, diâmetro de 2,06 m e altura de 1,10 m, conforme projeto.","un",{"$f":"E13","v":180}]
[null,"4.1",null,"Instalações Eletricas - Poços Cristalinos"]
["composição","4.1.1",null,"Elaboração de projeto de rede elétrica de baixa tensão, incluído aprovação junto a concessionária.","m",{"$f":"E13*200","v":36000}]
["composição","4.1.2",null,"Execução de rede elétrica de baixa tensão - cabo de alumínio de 25 mm² (3+1).","m",{"$f":"E13*200","v":36000}]
["composição","4.1.3",null,"Poste de Concreto (fornecimento e instalação)","un",{"$f":"E13*5","v":900}]
["composição","4.1.4",null,"Estrutura IM-A (fornecimento e instalação)","un",{"$f":"E13*3","v":540}]
["composição","4.1.5",null,"Estrutura IM-1 (fornecimento e instalação)",null,{"$f":"E13*2","v":360}]
["composição","4.1.6",null,"Fornecimento e montagem de quadro de medição no padrão CELPE para 3 ou 4 fios, inclusive haste de aterramento, condutores, conectores, eletroduto, disjuntor, caixa para disjuntor, bucha, arruela e tubo.","un",{"$f":"E13","v":180}]
["composição","4.1.7",null,"Abrigo de proteção em concreto armado para quadro de comando de bomba.","un",{"$f":"E13","v":180}]
[null,5,null,"Poços Cristalinos - Montagem e Instalação com cata-vento.",{"$nulls":5},{"$f":"H63/75","v":0}]
["composição","5.1",null,"Fornecimento e assentamento de tubos e conexões em PVC tipo Edutor, azul, Diâmetro Nominal de 50 mm (interligação do poço à caixa do reservatório).","m",{"$f":"F13*30","v":6600},null,null,{"$f":"M64","v":21.53},"Fornecimento e assentamento de tubos e conexões em PVC tipo Edutor, azul, Diâmetro Nominal de 50 mm (interligação do poço à caixa do reservatório).","m",2250,21.53,48442.5]
["composição","5.2",null,"Fornecimento, montagem e instalação de poço profundo tubular com diâmetro de 6\", com cata-vento de base triangular, diâmetro da tubulação 1 1/4\", profundidade do injetor entre 40m e 56m, incluindo fixação da torre sobre base de concreto no traço 1:2:3.","un",{"$f":"F13","v":220},null,null,{"$f":"M65","v":11262.22},"Fornecimento, montagem e instalação de poço profundo tubular com diâmetro de 6\", com cata-vento de base triangular, diâmetro da tubulação 1 1/4\", profundidade do injetor entre 40m e 56m, incluindo fixação da torre sobre base de concreto no traço 1:2:3.","un",75,11262.22,844666.5]
["composição","5.3",null,"Limpeza do terreno - Raspagem e limpeza manual do terreno com destocamento de arvore até 15cm (área de bebedouro e do reservatório).","m²",{"$f":"(F13)*10.25","v":2255},null,null,2.98,"Limpeza do terreno - Raspagem e limpeza manual do terreno com destocamento de arvore até 15cm (área de bebedouro e do reservatório).","m²",768.75,2.98,2290.88]
["composição","5.4",null,"Escavação manual de vala de fundação em material de 1 e 2ª categoria, com dimensões de 0,40 m (prof.) x 0,30 m (larg.), incluindo regularização manual do fundo da vala (reservatório ao bebedouro).","m³",{"$f":"F13*20*0.4*0.3","v":528},null,null,{"$f":"M67","v":18.920000000000002},"Escavação manual de vala de fundação em material de 1 e 2ª categoria, com dimensões de 0,40 m (prof.) x 0,30 m (larg.), incluindo regularização manual do fundo da vala (reservatório ao bebedouro).","m³",180,18.920000000000002,3405.6]
["composição","5.5",null,"Aterro manual de valas de fundação com 0,40 m de profundidade, 0,30 m largura, com avaliação visual da compactação (reservatório ao bebedouro).","m³",{"$f":"F67-(3.1416*0.016*0.016*20*F13)","v":524.46},null,null,16.93,"Aterro manual de valas de fundação com 0,40 m de profundidade, 0,30 m largura, com avaliação visual da compactação (reservatório ao bebedouro).","m³",178.79,16.93,3026.91]
["composição","5.6",null,"Escavação manual de vala de fundação para instalação de tubulação de adutora em material de 1ª e 2ª categoria, com dimensões de 0,40 m (prof.) x 0,30 m (larg.), incluindo regularização manual do fundo da vala (poço ao reservatório).  ","m³",{"$f":"F64*0.4*0.3","v":792},null,null,{"$f":"M69","v":18.920000000000002},"Escavação manual de vala de fundação para instalação de tubulação de adutora em material de 1ª e 2ª categoria, com dimensões de 0,40 m (prof.) x 0,30 m (larg.), incluindo regularização manual do fundo da vala (poço ao reservatório).  ","m³",270,18.920000000000002,5108.3999999999996]
["composição","5.7",null,"Aterro manual de valas de fundação com 0,40 m de profundidade, 0,30 m de largura, com avaliação visual da compactação (poço ao reservatório).","m³",{"$f":"F69-(3.1416*0.025*0.025*30*F13)","v":779.04},null,null,16.93,"Aterro manual de valas de fundação com 0,40 m de profundidade, 0,30 m de largura, com avaliação visual da compactação (poço ao reservatório).","m³",265.58,16.93,4496.2700000000004]
["composição","5.8",null,"Fornecimento e assentamento de tubos e conexões em PVC, marrom, diâmetros de 32mm, soldável.","m",{"$f":"F13*20","v":4400},null,null,{"$f":"M71","v":11.58},"Fornecimento e assentamento de tubos e conexões em PVC, marrom, diâmetros de 32mm, soldável.","m",1500,11.58,17370]
["composição","5.9",null,"Fornecimento e instalação de caixa d'água de fibra de 5m³, sobre base de concreto armado, incluído tubulação de dreno, lavagem e ladrão.","un",{"$f":"F13","v":220},null,null,2360.17,"Fornecimento e instalação de caixa d'água de fibra de 5m³, sobre base de concreto armado, incluído tubulação de dreno, lavagem e ladrão.","un",75,2360.17,177012.75]
["composição","5.10",null,"Fornecimento e montagem de cerca de proteção construída com mourões de concreto armado  (H=2,5 m), com ponta virada e com 11 fios de arame farpado, incluindo chumbamento e arame de fixação. ","m",{"$f":"F13*14.7","v":3234},null,null,48.05,"Fornecimento e montagem de cerca de proteção construída com mourões de concreto armado  (H=2,5 m), com ponta virada e com 11 fios de arame farpado, incluindo chumbamento e arame de fixação. ","m",1102.5,48.05,52975.13]
["composição","5.11",null,"Fornecimento, montagem e instalação de portão de ferro tubular, tela em aço galvanizado, dobradiças e fechadura para passagem de pedestre, medindo 1,80m x 1,10m, incluindo mourão de sustentação.","un",{"$f":"F13","v":220},null,null,{"$f":"M74","v":807.94},"Fornecimento, montagem e instalação de portão de ferro tubular, tela em aço galvanizado, dobradiças e fechadura para passagem de pedestre, medindo 1,80m x 1,10m, incluindo mourão de sustentação.","un",75,807.94,60595.5]
["composição","5.12",null,"Execução de bebedouro em concreto armado, incluindo a instalação hidráulica.","un",{"$f":"F13","v":220},null,null,910.41,"Execução de bebedouro em concreto armado, incluindo a instalação hidráulica.","un",75,910.41,68280.75]
["composição","5.13",null,"Execução de base de sustentação do reservatório em concreto armado, diâmetro de 2,06 m e altura de 1,10 m, conforme projeto.","un",{"$f":"F13","v":220},null,null,{"$f":"M76","v":1505.07},"Execução de base de sustentação do reservatório em concreto armado, diâmetro de 2,06 m e altura de 1,10 m, conforme projeto.","un",75,1505.07,112880.25]
[]
[{"$nulls":9},"cristalino"]
[{"$nulls":9},"bomba",null,"catavento"]
[{"$nulls":9},{"$f":"SUM(#REF!+J21+J41)","v":{"$error":"#REF!"}},null,{"$f":"SUM(#REF!+J21+J63)","v":{"$error":"#REF!"}}]
[{"$nulls":9},"perfuração","instalação","perfuração","instalação"]
[{"$nulls":9},{"$f":"J80-J41","v":{"$error":"#REF!"}},{"$f":"J80-J82","v":{"$error":"#REF!"}},{"$f":"L80-J63","v":{"$error":"#REF!"}},{"$f":"L80-L82","v":{"$error":"#REF!"}}]
[]
[{"$nulls":9},"sedimentar","Perfuração",{"$f":"J85-#REF!","v":{"$error":"#REF!"}}]
[{"$nulls":9},{"$f":"#REF!+#REF!+#REF!","v":{"$error":"#REF!"}},"Instalação",{"$f":"#REF!","v":{"$error":"#REF!"}}]
[{"$nulls":9},"geral"]
[{"$nulls":9},{"$f":"#REF!/(#REF!+G11)","v":{"$error":"#REF!"}}]

{"sheet":"CPU POÇOS","index":4,"n_rows":110,"n_cols":13,"rows_kept":110,"cut":false,"hidden":true,"merged":[[69,1,69,7],[54,1,54,7],[55,1,55,8],[64,1,64,7],[65,1,65,7],[66,3,66,7],[67,1,67,7],[51,1,51,8],[39,3,39,8],[40,1,40,6],[40,7,40,8],[31,1,31,7],[41,1,41,6],[42,1,42,8],[45,1,45,7],[46,1,46,8],[50,1,50,7],[1,3,1,8],[2,1,2,6],[2,7,2,8],[29,1,29,7],[3,1,3,6],[4,1,4,8],[7,1,7,7],[8,1,8,8],[12,1,12,7],[13,1,13,8],[16,1,16,7],[17,1,17,8],[26,1,26,7],[27,1,27,7],[28,3,28,7],[109,1,109,7],[76,1,76,8],[92,1,92,7],[99,1,99,8],[107,1,107,7],[94,1,94,7]]}
[]
[null,"CODEVASF","4.13"," COMPOSIÇÃO DE PREÇO UNITÁRIO"]
[null,"OBRA: Perfuração e Instalação de Poços Tubulares.",{"$nulls":5},"DATA:   Abril/2012"]
[null,"SERVIÇO : Elaboração de projeto e execução de rede elétrica de baixa tensão, extensão media de 200m, com cabo de aluminio de 25mm² (3+1).",{"$nulls":5},"UNIDADE: ","un"]
[null,"EQUIPAMENTO",{"$nulls":8},"poste","rede","projeto"]
[null,"DISCRIMINAÇÃO","UNID.","QUANT.","PROD","IMPROD","P.UNIT. PROD","P.UNIT. IMPR","P.TOTAL"]
[null,"GUINCHO TIPO MUNCK CAP * 6T * MONTADO EM CAMINHAO CARROCERIA, OU EQUIV SINAPI 3356","h",4,1,null,148.5,null,{"$f":"D7*E7*G7+D7*F7*H7","v":594},null,null,null,{"$f":"I7","v":594}]
[null,"SUB-TOTAL",{"$nulls":6},{"$f":"SUM(I7:I7)","v":594},null,{"$f":"SUM(K7:K7)","v":0},{"$f":"SUM(L7:L7)","v":0},{"$f":"SUM(M7:M7)","v":594}]
[null,"MATERIAL"]
[null,"DISCRIMINAÇÃO","UNID.","QUANT.",null,null,null,"P.UNIT.","P.TOTAL"]
[null,"Cabo de aluminio 0,6/1kv multiplexados 1x1x16 +16mm²","m",220,"ORSE","2633",null,2.15,{"$f":"ROUND(D11*H11,2)","v":473},null,null,{"$f":"I11","v":473}]
[null,"POSTE DE CONCRETO DUPLO T, 100KG, H = 8M DE ACORDO COM NBR 8451","un",4,"SINAPI","13334",null,228.33,{"$f":"ROUND(D12*H12,2)","v":913.32},null,{"$f":"I12","v":913.32}]
[null,"SUB-TOTAL",{"$nulls":6},{"$f":"SUM(I11:I12)","v":1386.32},null,{"$f":"SUM(K11:K12)","v":913.32},{"$f":"SUM(L11:L12)","v":473},{"$f":"SUM(M11:M12)","v":0}]
[null,"SERVIÇOS - COMPOSIÇÕES AUXILIARES"]
[null,"DISCRIMINAÇÃO","UNID.","QUANT.",null,null,null,"P.UNIT.","P.TOTAL"]
[{"$nulls":8},{"$f":"D16*H16","v":0}]
[{"$nulls":8},{"$f":"SUM(I16:I16)","v":0}]
[null,"MÃO DE OBRA"]
[null,"DISCRIMINAÇÃO","UNID.","QUANT.",null,null,null,"P.UNIT.","P.TOTAL"]
[null,"Engenheiro elétrico júnior","mês",0.05,null,null,null,5286.69,{"$f":"ROUND(D20*H20,2)","v":264.33},null,null,null,{"$f":"I20","v":264.33}]
[null,"Cadista.","mês",0.05,null,null,null,1973.76,{"$f":"ROUND(D21*H21,2)","v":98.69},null,null,null,{"$f":"I21","v":98.69}]
[null,"Topografo.","h",5,null,null,null,5.97,29.85,null,null,null,{"$f":"I22","v":29.85}]
[null,"Auxiliar de topografia.","h",22.65,null,null,null,1.99,45.07,null,null,null,{"$f":"I23","v":45.07}]
[null,"Eletricista montador.","h",8,null,null,null,4.1100000000000003,32.880000000000003,null,null,{"$f":"I24","v":32.880000000000003}]
[null,"Auxiliar prático","h",13,null,null,null,3.38,43.94,null,null,{"$f":"I25","v":43.94}]
[null,"Servente.","h",13,null,null,null,3.09,40.17,null,{"$f":"I26","v":40.17}]
[null,"Leis Sociais: 127,96 %",{"$nulls":6},{"$f":"SUM(I20:I26)*1.2796","v":710.09},null,{"$f":"SUM(K20:K26)*1.2796","v":51.4},{"$f":"SUM(L20:L26)*1.2796","v":98.3},{"$f":"SUM(M20:M26)*1.2796","v":560.39}]
[null,"SUB-TOTAL",{"$nulls":6},{"$f":"SUM(I20:I27)","v":1265.02},null,{"$f":"SUM(K20:K27)","v":91.57},{"$f":"SUM(L20:L27)","v":175.12},{"$f":"SUM(M20:M27)","v":998.33}]
[null,"PRODUÇÃO DA EQUIPE",1,"CUSTO ",{"$nulls":4},{"$f":"I28+I17+I13+I8","v":3245.34},null,{"$f":"K28+K17+K13+K8","v":1004.89},{"$f":"L28+L17+L13+L8","v":648.12},{"$f":"M28+M17+M13+M8","v":1592.33}]
[{"$nulls":8},{"$f":"I29/C29","v":3245.34},null,{"$f":"K29/C29","v":1004.89},{"$f":"L29/C29","v":648.12},{"$f":"M29/C29","v":1592.33}]
[null,"BDI          ",22.5,"%",{"$nulls":4},{"$f":"C31/100*I30","v":730.2},null,{"$f":"C31/100*K30","v":226.1},{"$f":"C31/100*L30","v":145.83000000000001},{"$f":"C31/100*M30","v":358.27}]
[null,"TOTAL DO SERVIÇO - R$",{"$nulls":6},{"$f":"SUM(I30:I31)","v":3975.54},null,{"$f":"SUM(K30:K31)","v":1230.99},{"$f":"SUM(L30:L31)","v":793.95},{"$f":"SUM(M30:M31)","v":1950.6}]
{"$rows_empty":7}
[null,"CODEVASF","6.1"," COMPOSIÇÃO DE PREÇO UNITÁRIO"]
[null,"OBRA: Perfuração e Instalação de Poços Tubulares.",{"$nulls":5},"DATA:   Abril/2012"]
[null,"SERVIÇO : Elaboração de projeto e execução de rede elétrica de baixa tensão, extensão = 250m, segundo padrão CELPE com capacidade de suportar a carga do equipamento instalado. O projeto devera ser aprovado pela CELPE.",{"$nulls":5},"UNIDADE: ","un",184852]
[null,"EQUIPAMENTO",{"$nulls":8},"poste","rede","projeto"]
[null,"DISCRIMINAÇÃO","UNID.","QUANT.","PROD","IMPROD","P.UNIT. PROD","P.UNIT. IMPR","P.TOTAL"]
[null,"GUINCHO TIPO MUNCK CAP * 6T * MONTADO EM CAMINHAO CARROCERIA, OU EQUIV SINAPI 3356","h",4,1,null,148.5,null,{"$f":"D45*E45*G45+D45*F45*H45","v":594},null,null,null,{"$f":"I45","v":594}]
[null,"SUB-TOTAL",{"$nulls":6},{"$f":"SUM(I45:I45)","v":594},null,{"$f":"SUM(K45:K45)","v":0},{"$f":"SUM(L45:L45)","v":0},{"$f":"SUM(M45:M45)","v":594}]
[null,"MATERIAL"]
[null,"DISCRIMINAÇÃO","UNID.","QUANT.",null,null,null,"P.UNIT.","P.TOTAL"]
[null,"Cabo de aluminio 0,6/1kv multiplexados 1x1x16 +16mm²","m",275,"ORSE","2633",null,2.15,{"$f":"ROUND(D49*H49,2)","v":591.25},null,null,{"$f":"I49","v":591.25}]
[null,"POSTE DE CONCRETO DUPLO T, 100KG, H = 8M DE ACORDO COM NBR 8451","un",4,"SINAPI","13334",null,228.33,{"$f":"ROUND(D50*H50,2)","v":913.32},null,{"$f":"I50","v":913.32}]
[null,"SUB-TOTAL",{"$nulls":6},{"$f":"SUM(I49:I50)","v":1504.57},null,{"$f":"SUM(K49:K50)","v":913.32},{"$f":"SUM(L49:L50)","v":591.25},{"$f":"SUM(M49:M50)","v":0}]
[null,"SERVIÇOS - COMPOSIÇÕES AUXILIARES"]
[null,"DISCRIMINAÇÃO","UNID.","QUANT.",null,null,null,"P.UNIT.","P.TOTAL"]
[{"$nulls":8},{"$f":"D54*H54","v":0}]
[{"$nulls":8},{"$f":"SUM(I54:I54)","v":0}]
[null,"MÃO DE OBRA"]
[null,"DISCRIMINAÇÃO","UNID.","QUANT.",null,null,null,"P.UNIT.","P.TOTAL"]
[null,"Engenheiro elétrico júnior","mês",0.05,null,null,null,5286.69,{"$f":"ROUND(D58*H58,2)","v":264.33},null,null,null,{"$f":"I58","v":264.33}]
[null,"Cadista","mês",0.05,null,null,null,1973.76,98.69,null,null,null,{"$f":"I59","v":98.69}]
[null,"Topografo","h",5,null,null,null,5.97,29.85,null,null,null,{"$f":"I60","v":29.85}]
[null,"Auxiliar de topografia","h",22.65,null,null,null,1.99,45.07,null,null,null,{"$f":"I61","v":45.07}]
[null,"Eletricista montador","h",8,null,null,null,4.1100000000000003,32.880000000000003,null,null,{"$f":"I62","v":32.880000000000003}]
[null,"Auxiliar prático","h",13,null,null,null,3.38,43.94,null,null,{"$f":"I63","v":43.94}]
[null,"Servente","h",13,null,null,null,3.09,40.17,null,{"$f":"I64","v":40.17}]
[null,"Leis Sociais: 127,96 %",{"$nulls":6},{"$f":"SUM(I58:I64)*1.2796","v":710.09},null,{"$f":"SUM(K58:K64)*1.2796","v":51.4},{"$f":"SUM(L58:L64)*1.2796","v":98.3},{"$f":"SUM(M58:M64)*1.2796","v":560.39}]
[null,"SUB-TOTAL",{"$nulls":6},{"$f":"SUM(I58:I65)","v":1265.02},null,{"$f":"SUM(K58:K65)","v":91.57},{"$f":"SUM(L58:L65)","v":175.12},{"$f":"SUM(M58:M65)","v":998.33}]
[null,"PRODUÇÃO DA EQUIPE",1,"CUSTO ",{"$nulls":4},{"$f":"I66+I55+I51+I46","v":3363.59},null,{"$f":"K66+K55+K51+K46","v":1004.89},{"$f":"L66+L55+L51+L46","v":766.37},{"$f":"M66+M55+M51+M46","v":1592.33}]
[{"$nulls":8},{"$f":"I67/C67","v":3363.59},null,{"$f":"K67/C67","v":1004.89},{"$f":"L67/C67","v":766.37},{"$f":"M67/C67","v":1592.33}]
[null,"BDI          ",22.5,"%",{"$nulls":4},{"$f":"C69/100*I68","v":756.81},null,{"$f":"C69/100*K68","v":226.1},{"$f":"C69/100*L68","v":172.43},{"$f":"C69/100*M68","v":358.27}]
[null,"TOTAL DO SERVIÇO - R$",{"$nulls":6},{"$f":"SUM(I68:I69)","v":4120.3999999999996},null,{"$f":"SUM(K68:K69)","v":1230.99},{"$f":"SUM(L68:L69)","v":938.8},{"$f":"SUM(M68:M69)","v":1950.6}]
[]
[]
[]
[]
[]
[]
[null,"COMPOSIÇÃO PARA ESTRUTURA IM-1"]
[null,"DISCRIMINAÇÃO","CÓDIGO CELPE","CÓDIGO","FONTE","UNID.","QUANT.","P.UNIT.","P.TOTAL"]
[null,"Arruela quadrada aço 38 F18,00","A-2",379,"SINAPI","unid.",1,2.06,{"$f":" ROUND(G79 * H79,2)","v":2.06}]
[null,"Fita isolante preta 19x20mm (Fase A)","A-15-3",20111,"SINAPI","unid.",{"$f":" 0.25 /20","v":1.2500000000000001E-2},5,{"$f":" ROUND(G80 * H80,2)","v":0.06}]
[null,"Fita isol. EPR Autofusão preta 19mm x 10m","A-15-6",2643,"ORSE","unid.",{"$f":" 0.25 / 10","v":2.5000000000000001E-2},{"$f":"11/1.387","v":7.93},0.2]
[null,"Sapatilha cabo 9,5mm","A-25",2007,"ORSE","unid.",1,{"$f":"1.32/1.387","v":0.95},0.95]
[null,"Cabo de cobre nu 2 AWG","C-7",3249,"ORSE","kg",2.75,{"$f":"41.69/1.387","v":30.06},82.67]
[null,"Fio cobre 750 V 1,50 PT (Nota 1)","C-8",938,"SINAPI","m",0.5,0.71,0.36]
[null,"Haste terra cobre 16x2400mm","F-17",3383,"SINAPI","unid.",1,23.97,23.97]
[null,"Olhal parafuso 5000 daN","F-25",421,"SINAPI","unid.",1,12.9,12.9]
[null,"Conector atr aço reta 35,0/HA 16,0mm²","O-4",425,"SINAPI","unid.",1,2.72,2.72]
[null,"Conector cunha est. Cinza","O-8-1",10624,"ORSE","unid.",1,{"$f":"2.43/1.387","v":1.75},1.75]
[null,"Alça pref serv AL AS 25mm2","M-3",417,"SINAPI","unid.",1,2.5299999999999998,2.5299999999999998]
[null,"Grampo aço fita ¾”","M-6",9961,"ORSE","unid.",1,{"$f":"0.77/1.387","v":0.56000000000000005},0.56000000000000005]
[null,"Fita de aço inoxidável 19mmx30m","M-7",406,"SINAPI","unid.",{"$f":" 0.6 / 30","v":0.02},27.49,0.55000000000000004]
[null,"Parafuso cabeça quadrada galv. M-16 (200 mm)","F-30",431,"SINAPI","unid.",1,6.69,6.69]
[null,"Valor Total",{"$nulls":6},{"$f":"SUM(I79:I92)","v":137.97}]
[null,"BDI          ",22.5,"%",{"$nulls":4},{"$f":"C94/100*I93","v":31.04}]
[null,"TOTAL - R$",{"$nulls":6},{"$f":"SUM(I93:I94)","v":169.01}]
[]
[]
[]
[]
[null,"COMPOSIÇÃO PARA ESTRUTURA IM-A"]
[null,"DISCRIMINAÇÃO","CÓDIGO CELPE","CÓDIGO","FONTE","UNID.","QUANT.","P.UNIT.","P.TOTAL"]
[null,"Arruela quadrada aço 38 F18,00","A-2",379,"SINAPI","unid.",1,2.06,{"$f":" ROUND(G102 * H102,2)","v":2.06}]
[null,"Fita isolante preta 19x20mm (Fase A)","A-15-3",20111,"SINAPI","unid.",{"$f":" 0.25 /20","v":1.2500000000000001E-2},5,0.06]
[null,"Armação secundária aço 1 estribo c/haste","F-3-1",1094,"SINAPI","unid.",1,9.06,9.06]
[null,"Isolador roldana porcelana R-1350-2","I-3",3398,"SINAPI","unid.",1,5.52,5.52]
[null,"Laço preformado roldana","M-13",417,"SINAPI","unid.",1,2.5299999999999998,2.5299999999999998]
[null,"Parafuso cabeça quadrada galv. M-16 (200 mm)","F-30",431,"SINAPI","unid.",1,6.69,6.69]
[null,"Valor Total",{"$nulls":6},{"$f":"SUM(I102:I107)","v":25.92}]
[null,"BDI          ",22.5,"%",{"$nulls":4},{"$f":"C109/100*I108","v":5.83}]
[null,"TOTAL - R$",{"$nulls":6},{"$f":"SUM(I108:I109)","v":31.75}]

{"sheet":"DESLOCAMENTOS","index":5,"n_rows":27,"n_cols":8,"rows_kept":27,"cut":false,"hidden":true,"merged":[]}
["CIDADE","PERFURAÇÃO","INSTALAÇÃO","TOTAL","RODOVIÁRIO","VICINAL","TEMPO UNITÁRIO","TEMPO TOTAL"]
["AFRÂNIO",2,null,{"$f":"B2+C2","v":2},106,20,{"$f":"(2*E2)/60+(2*F2)/40","v":4.53},{"$f":"G2*D2","v":9.06}]
["ARARIPINA",4,2,{"$f":"B3+C3","v":6},271,20,{"$f":"(2*E3)/60+(2*F3)/40","v":10.029999999999999},{"$f":"G3*D3","v":60.18}]
["BODOCÓ",14,null,14,250,20,9.33,130.62]
["CABROBÓ",7,1,8,182,20,7.07,56.56]
["CEDRO",3,null,3,300,20,11,33]
["DORMENTES",3,4,7,152,20,6.07,42.49]
["EXU",20,null,20,280,20,10.33,206.6]
["GRANITO",14,10,24,275,20,10.17,244.08]
["IPUBI",1,null,1,255,20,9.5,9.5]
["LAGOA GRANDE",8,1,9,47,20,2.57,23.13]
["MIRANDIBA",8,null,8,312,20,11.4,91.2]
["MOREILÂNDIA",6,null,6,314,20,11.47,68.819999999999993]
["OROCÓ",4,null,4,144,20,5.8,23.2]
["OURICURI",17,3,20,211,20,8.0299999999999994,160.6]
["PARNAMIRIM",4,1,5,184,20,7.13,35.65]
["PETROLINA",6,8,14,0,20,{"$f":"(2*E17)/60+(2*F17)/40","v":1},14]
["SALGUEIRO",2,null,2,235,20,8.83,17.66]
["SANTA CRUZ",2,null,2,158,20,6.27,12.54]
["SANTA FILOMENA",3,null,3,164,20,6.47,19.41]
["SANTA MARIA DA BOA VISTA",4,1,5,107,20,4.57,22.85]
["SÃO JOSÉ DO BELMONTE",3,null,3,328,20,11.93,35.79]
["SERRITA",7,null,7,288,20,10.6,74.2]
["TERRA NOVA",3,null,3,219,20,8.3000000000000007,24.9]
["VERDEJANTE",3,null,3,277,20,{"$f":"(2*E25)/60+(2*F25)/40","v":10.23},{"$f":"G25*D25","v":30.69}]
[null,null,null,{"$f":"SUM(D2:D25)","v":179},null,null,null,{"$f":"SUM(H2:H25)","v":1446.73}]
[{"$nulls":6},"MÉDIA",{"$f":"H26/D26","v":8.08}]

{"sheet":"RESUMO","index":6,"n_rows":42,"n_cols":10,"rows_kept":42,"cut":false,"hidden":true,"merged":[]}
["ct 066"]
["4.13.1","poste","unid",{"$f":"4*160","v":640},{"$f":"'CPU POÇOS'!K32/4","v":307.75},{"$f":"D2*E2","v":196960}]
["4.13.2","rede","m",{"$f":"200*160","v":32000},{"$f":"'CPU POÇOS'!L32/200","v":3.97},{"$f":"D3*E3","v":127040}]
["4.13.3","projeto","unid",{"$f":"1*160","v":160},{"$f":"'CPU POÇOS'!M32","v":1950.6},{"$f":"D4*E4","v":312096}]
[{"$nulls":5},{"$f":"SUM(F2:F4)","v":636096}]
[{"$nulls":5},4880.68]
[{"$nulls":5},{"$f":"F5/160","v":3975.6}]
["ct 060"]
["4.13.1","poste","unid",{"$f":"4*61.25","v":245},{"$f":"E2","v":307.75},{"$f":"D9*E9","v":75398.75}]
["4.13.2","rede","m",{"$f":"200*61.25","v":12250},{"$f":"E3","v":3.97},{"$f":"D10*E10","v":48632.5}]
["4.13.3","projeto","unid",{"$f":"1*61.25","v":61.25},{"$f":"E4","v":1950.6},{"$f":"D11*E11","v":119474.25}]
[{"$nulls":5},{"$f":"SUM(F9:F11)","v":243505.5}]
[{"$nulls":5},4880.68]
[{"$nulls":5},{"$f":"F12/61.25","v":3975.6}]
[]
["ct 066 "]
["6.1.1","poste","unid",{"$f":"5*10","v":50},{"$f":"'CPU POÇOS'!K70/5","v":246.2},{"$f":"D17*E17","v":12310}]
["6.1.2","rede","m",{"$f":"250*10","v":2500},{"$f":"'CPU POÇOS'!L70/250","v":3.76},{"$f":"D18*E18","v":9400}]
["6.1.3","projeto","unid",{"$f":"1*10","v":10},{"$f":"'CPU POÇOS'!M70","v":1950.6},{"$f":"D19*E19","v":19506}]
[{"$nulls":5},{"$f":"SUM(F17:F19)","v":41216}]
[{"$nulls":5},5315.24]
[{"$nulls":5},{"$f":"F20/10","v":4121.6000000000004}]
{"$rows_empty":19}
[{"$nulls":9},184852]